[Event "*** Titled Tuesday Blitz"]
[Site "Chess.com"]
[Date "2020.10.20"]
[Round "2"]
[White "MoreChessJulia"]
[Black "Loy_Konstantin"]
[Result "0-1"]
[WhiteElo "1984"]
[BlackElo "2366"]
[TimeControl "180+1"]
[EndTime "10:18:55 PDT"]
[Termination "Loy_Konstantin won by checkmate"]

1. d4 {[%clk 0:02:59.4]} 1... Nf6 {[%clk 0:01:50.9]} 2. Bg5 {[%clk 0:02:58.6]}
2... c5 {[%clk 0:01:48.7]} 3. e3 {[%clk 0:02:50.1]} 3... cxd4 {[%clk 0:01:47.5]}
4. exd4 {[%clk 0:02:49.8]} 4... Qa5+ {[%clk 0:01:47.3]} 5. Bd2 {[%clk
0:02:49.3]} 5... Qb6 {[%clk 0:01:47.4]} 6. Nf3 {[%clk 0:02:45.4]} 6... Qxb2
{[%clk 0:01:40.5]} 7. Nc3 {[%clk 0:02:44.9]} 7... Qb6 {[%clk 0:01:35.4]} 8. Bd3
{[%clk 0:02:41.2]} 8... d5 {[%clk 0:01:35.2]} 9. O-O {[%clk 0:02:39.2]} 9... Bg4
{[%clk 0:01:35.1]} 10. h3 {[%clk 0:02:38.8]} 10... Bh5 {[%clk 0:01:34.9]} 11. g4
{[%clk 0:02:38.5]} 11... Bg6 {[%clk 0:01:34.7]} 12. Bb5+ {[%clk 0:02:38]} 12...
Nbd7 {[%clk 0:01:32.9]} 13. Ne5 {[%clk 0:02:37.1]} 13... a6 {[%clk 0:01:29.2]}
14. Bxd7+ {[%clk 0:02:33]} 14... Nxd7 {[%clk 0:01:28.1]} 15. Nxd5 {[%clk
0:02:33]} 15... Qd8 {[%clk 0:01:16.9]} 16. Nc4 {[%clk 0:02:10.8]} 16... e6
{[%clk 0:01:06.3]} 17. Ba5 {[%clk 0:02:05.1]} 17... b6 {[%clk 0:00:35.6]} 18.
Ndxb6 {[%clk 0:01:58.1]} 18... Nxb6 {[%clk 0:00:34.1]} 19. Bxb6 {[%clk
0:01:56.9]} 19... Qd7 {[%clk 0:00:24.7]} 20. c3 {[%clk 0:01:47.4]} 20... Bd6
{[%clk 0:00:21.5]} 21. Nxd6+ {[%clk 0:01:45.2]} 21... Qxd6 {[%clk 0:00:21.3]}
22. Bc5 {[%clk 0:01:44.2]} 22... Qc6 {[%clk 0:00:18.7]} 23. f3 {[%clk
0:01:39.2]} 23... Rd8 {[%clk 0:00:18.3]} 24. h4 {[%clk 0:01:36.9]} 24... h5
{[%clk 0:00:18.1]} 25. g5 {[%clk 0:01:22.9]} 25... f6 {[%clk 0:00:18.6]} 26. Qd2
{[%clk 0:01:11.6]} 26... Kf7 {[%clk 0:00:18.5]} 27. Qe3 {[%clk 0:01:07.9]} 27...
Rhe8 {[%clk 0:00:15.9]} 28. Rfe1 {[%clk 0:01:00.7]} 28... e5 {[%clk 0:00:16]}
29. Qf2 {[%clk 0:00:56.6]} 29... exd4 {[%clk 0:00:14.7]} 30. cxd4 {[%clk
0:00:51.4]} 30... fxg5 {[%clk 0:00:14.9]} 31. hxg5 {[%clk 0:00:50.4]} 31... Qd5
{[%clk 0:00:15.1]} 32. Qg3 {[%clk 0:00:45.3]} 32... Qd7 {[%clk 0:00:10]} 33.
Rac1 {[%clk 0:00:38.1]} 33... Rxe1+ {[%clk 0:00:08.8]} 34. Rxe1 {[%clk
0:00:37.5]} 34... Re8 {[%clk 0:00:09.1]} 35. Qf4+ {[%clk 0:00:34.9]} 35... Kg8
{[%clk 0:00:08.1]} 36. Re5 {[%clk 0:00:26.1]} 36... Rxe5 {[%clk 0:00:07.3]} 37.
Qxe5 {[%clk 0:00:25.4]} 37... Kh7 {[%clk 0:00:06.8]} 38. Kh2 {[%clk 0:00:22.4]}
38... Qb5 {[%clk 0:00:05.6]} 39. Bf8 {[%clk 0:00:18.1]} 39... Qb2+ {[%clk
0:00:05.8]} 40. Kg3 {[%clk 0:00:17.7]} 40... Qb7 {[%clk 0:00:06.5]} 41. Be7
{[%clk 0:00:14.4]} 41... Qd7 {[%clk 0:00:06.2]} 42. d5 {[%clk 0:00:11.8]} 42...
Bf7 {[%clk 0:00:04.9]} 43. Qe4+ {[%clk 0:00:09.2]} 43... Bg6 {[%clk 0:00:04.6]}
44. Qe5 {[%clk 0:00:08.9]} 44... Kg8 {[%clk 0:00:04.9]} 45. d6 {[%clk
0:00:08.1]} 45... Kf7 {[%clk 0:00:04.9]} 46. Qf4+ {[%clk 0:00:07.6]} 46... Bf5
{[%clk 0:00:05.3]} 47. Qe3 {[%clk 0:00:06.4]} 47... Kg6 {[%clk 0:00:05.8]} 48.
Qc5 {[%clk 0:00:05.9]} 48... Qe6 {[%clk 0:00:05.6]} 49. Qc7 {[%clk 0:00:05]}
49... h4+ {[%clk 0:00:05.7]} 50. Kxh4 {[%clk 0:00:04.7]} 50... Qe1# {[%clk
0:00:05.8]} 0-1

[Event "*** Titled Tuesday Blitz"]
[Site "Chess.com"]
[Date "2020.10.20"]
[Round "2"]
[White "dragos420"]
[Black "Tooweak2slow03"]
[Result "0-1"]
[WhiteElo "2498"]
[BlackElo "2775"]
[TimeControl "180+1"]
[EndTime "10:19:00 PDT"]
[Termination "Tooweak2slow03 won by resignation"]

1. e4 {[%clk 0:03:00.9]} 1... e6 {[%clk 0:03:00.2]} 2. d4 {[%clk 0:02:59.9]}
2... d5 {[%clk 0:03:01.1]} 3. Nd2 {[%clk 0:02:58.2]} 3... Nc6 {[%clk 0:03:01.1]}
4. Ngf3 {[%clk 0:02:56.5]} 4... Nf6 {[%clk 0:03:01.6]} 5. e5 {[%clk 0:02:56.4]}
5... Nd7 {[%clk 0:03:02.2]} 6. Bd3 {[%clk 0:02:52.9]} 6... f6 {[%clk 0:03:02.5]}
7. exf6 {[%clk 0:02:52.1]} 7... Qxf6 {[%clk 0:03:03.4]} 8. c3 {[%clk 0:02:51.1]}
8... Bd6 {[%clk 0:03:03.8]} 9. O-O {[%clk 0:02:47.3]} 9... O-O {[%clk
0:03:03.5]} 10. Re1 {[%clk 0:02:46.8]} 10... e5 {[%clk 0:03:04.1]} 11. dxe5
{[%clk 0:02:45.5]} 11... Ndxe5 {[%clk 0:03:05]} 12. Be2 {[%clk 0:02:32.8]} 12...
Bg4 {[%clk 0:02:56.7]} 13. h3 {[%clk 0:02:31.9]} 13... Bh5 {[%clk 0:02:53.6]}
14. Qb3 {[%clk 0:02:26]} 14... Qf7 {[%clk 0:02:48.5]} 15. Rf1 {[%clk 0:01:46.4]}
15... Na5 {[%clk 0:02:38.9]} 16. Qb5 {[%clk 0:01:12.4]} 16... Nxf3+ {[%clk
0:02:33.6]} 17. Bxf3 {[%clk 0:00:56.6]} 17... Bxf3 {[%clk 0:02:32.8]} 18. Nxf3
{[%clk 0:00:57.5]} 18... Nc4 {[%clk 0:02:31.8]} 19. Qxb7 {[%clk 0:00:41.9]}
19... Kh8 {[%clk 0:02:26.3]} 20. Qb3 {[%clk 0:00:38.5]} 20... Qh5 {[%clk
0:02:24.2]} 21. Qd1 {[%clk 0:00:36.6]} 21... Rae8 {[%clk 0:02:23.3]} 22. b3
{[%clk 0:00:30.4]} 22... Ne5 {[%clk 0:02:19.2]} 23. Nd4 {[%clk 0:00:25.1]} 23...
Qh4 {[%clk 0:02:14]} 24. f4 {[%clk 0:00:15.2]} 24... Nf7 {[%clk 0:02:09.9]} 25.
Qg4 {[%clk 0:00:14.8]} 25... Qe7 {[%clk 0:02:07]} 26. Bd2 {[%clk 0:00:13.8]}
26... Bc5 {[%clk 0:02:05.7]} 27. Rae1 {[%clk 0:00:13.2]} 27... Qf6 {[%clk
0:02:04.9]} 28. Be3 {[%clk 0:00:11.9]} 28... Nd6 {[%clk 0:02:03]} 29. Bf2 {[%clk
0:00:11.5]} 29... Ne4 {[%clk 0:02:01.7]} 30. Be3 {[%clk 0:00:09.1]} 30... Nxc3
{[%clk 0:02:00.6]} 31. Nc2 {[%clk 0:00:08.5]} 31... Qb6 {[%clk 0:01:54.3]} 32.
Bxc5 {[%clk 0:00:08.2]} 32... Qxc5+ {[%clk 0:01:55.2]} 33. Kh1 {[%clk
0:00:09.1]} 33... d4 {[%clk 0:01:52.6]} 34. Rxe8 {[%clk 0:00:08]} 34... Rxe8
{[%clk 0:01:52.6]} 35. Qd7 {[%clk 0:00:08.9]} 35... Qe7 {[%clk 0:01:48.9]} 36.
Qxe7 {[%clk 0:00:08.9]} 36... Rxe7 {[%clk 0:01:47.7]} 37. Nxd4 {[%clk
0:00:09.8]} 37... Nxa2 {[%clk 0:01:46.5]} 38. Ra1 {[%clk 0:00:09.8]} 38... Nb4
{[%clk 0:01:45.8]} 39. Rxa7 {[%clk 0:00:10.1]} 39... g6 {[%clk 0:01:44.6]} 40.
Nb5 {[%clk 0:00:09.6]} 40... Nd5 {[%clk 0:01:43.5]} 41. Kh2 {[%clk 0:00:10.1]}
41... Nxf4 {[%clk 0:01:43]} 42. Rxc7 {[%clk 0:00:09.7]} 42... Re2 {[%clk
0:01:41.7]} 43. Nd6 {[%clk 0:00:09.4]} 43... Rxg2+ {[%clk 0:01:40.2]} 44. Kh1
{[%clk 0:00:09.7]} 44... Rg3 {[%clk 0:01:40.4]} 45. Nf7+ {[%clk 0:00:09.7]}
45... Kg8 {[%clk 0:01:39.6]} 46. Nh6+ {[%clk 0:00:09.8]} 46... Kf8 {[%clk
0:01:38.6]} 47. Rf7+ {[%clk 0:00:09.5]} 47... Ke8 {[%clk 0:01:37.8]} 48. Rxh7
{[%clk 0:00:09.8]} 48... Rxh3+ {[%clk 0:01:36.2]} 49. Kg1 {[%clk 0:00:10.3]}
49... Rxb3 {[%clk 0:01:33.7]} 50. Ng4 {[%clk 0:00:09.2]} 50... Nh3+ {[%clk
0:01:12.9]} 51. Kg2 {[%clk 0:00:09]} 51... Nf4+ {[%clk 0:01:12.9]} 52. Kf2
{[%clk 0:00:09.5]} 52... g5 {[%clk 0:01:11.6]} 53. Nf6+ {[%clk 0:00:09.5]} 53...
Kf8 {[%clk 0:01:10.3]} 54. Rc7 {[%clk 0:00:06.3]} 54... Nh3+ {[%clk 0:01:07.7]}
55. Kg2 {[%clk 0:00:04.1]} 55... Nf4+ {[%clk 0:01:06.1]} 56. Kf2 {[%clk
0:00:04.4]} 56... Rb5 {[%clk 0:01:04.7]} 57. Kf3 {[%clk 0:00:03.9]} 57... Ne6
{[%clk 0:01:02.4]} 58. Rc6 {[%clk 0:00:03.2]} 58... Kf7 {[%clk 0:00:52.4]} 59.
Ne4 {[%clk 0:00:03]} 59... Nd4+ {[%clk 0:00:50.1]} 60. Ke3 {[%clk 0:00:01.5]}
60... Nf5+ {[%clk 0:00:31.9]} 61. Kf2 {[%clk 0:00:01.4]} 61... Rb2+ {[%clk
0:00:29.1]} 62. Kf3 {[%clk 0:00:01.2]} 62... Nd4+ {[%clk 0:00:29.4]} 63. Ke3
{[%clk 0:00:01.2]} 63... Nxc6 {[%clk 0:00:30.3]} 0-1

[Event "*** Titled Tuesday Blitz"]
[Site "Chess.com"]
[Date "2020.10.20"]
[Round "2"]
[White "Lagmantr"]
[Black "shnitez"]
[Result "1-0"]
[WhiteElo "2730"]
[BlackElo "2468"]
[TimeControl "180+1"]
[EndTime "10:19:01 PDT"]
[Termination "Lagmantr won by checkmate"]

1. e4 {[%clk 0:03:00.9]} 1... c5 {[%clk 0:02:59]} 2. Nf3 {[%clk 0:03:01]} 2...
e6 {[%clk 0:02:58.4]} 3. d4 {[%clk 0:03:01.2]} 3... cxd4 {[%clk 0:02:59.3]} 4.
Nxd4 {[%clk 0:03:01.9]} 4... a6 {[%clk 0:02:59.7]} 5. c4 {[%clk 0:03:02.5]} 5...
Nf6 {[%clk 0:02:59.2]} 6. Nc3 {[%clk 0:03:02.6]} 6... Qc7 {[%clk 0:02:59.4]} 7.
Be2 {[%clk 0:03:02.6]} 7... b6 {[%clk 0:02:54]} 8. f4 {[%clk 0:03:01.1]} 8...
Bb7 {[%clk 0:02:44]} 9. e5 {[%clk 0:03:01]} 9... Ne4 {[%clk 0:02:43.4]} 10. Nxe4
{[%clk 0:02:59]} 10... Bxe4 {[%clk 0:02:44.3]} 11. Bf3 {[%clk 0:02:58.5]} 11...
Bb4+ {[%clk 0:02:35.1]} 12. Bd2 {[%clk 0:02:47.8]} 12... Bxd2+ {[%clk
0:02:32.5]} 13. Kxd2 {[%clk 0:02:48.1]} 13... Qxc4 {[%clk 0:02:29.1]} 14. Ke3
{[%clk 0:02:34.9]} 14... Bxf3 {[%clk 0:02:22.6]} 15. Qxf3 {[%clk 0:02:35.8]}
15... Nc6 {[%clk 0:02:21.4]} 16. Nxc6 {[%clk 0:02:36]} 16... Qxc6 {[%clk
0:02:14.9]} 17. Qxc6 {[%clk 0:02:35]} 17... dxc6 {[%clk 0:02:15.8]} 18. b4
{[%clk 0:02:22.5]} 18... Kd7 {[%clk 0:02:03.2]} 19. Rac1 {[%clk 0:02:18.9]}
19... Kc7 {[%clk 0:01:49.1]} 20. Rc3 {[%clk 0:02:12.5]} 20... Kb7 {[%clk
0:01:48.1]} 21. h4 {[%clk 0:02:05.7]} 21... Rhd8 {[%clk 0:01:46.5]} 22. h5
{[%clk 0:02:03.3]} 22... h6 {[%clk 0:01:43.1]} 23. Rh3 {[%clk 0:01:52.2]} 23...
Rd5 {[%clk 0:01:36.9]} 24. Rg3 {[%clk 0:01:45.5]} 24... Rg8 {[%clk 0:01:36.5]}
25. Ke4 {[%clk 0:01:34.4]} 25... a5 {[%clk 0:01:04]} 26. Rg4 {[%clk 0:01:01.1]}
26... axb4 {[%clk 0:00:45.1]} 27. Rcg3 {[%clk 0:01:00.4]} 27... Ra5 {[%clk
0:00:34]} 28. Rxg7 {[%clk 0:01:00]} 28... Rxg7 {[%clk 0:00:34.9]} 29. Rxg7
{[%clk 0:01:00.3]} 29... Rxa2 {[%clk 0:00:35.6]} 30. Rxf7+ {[%clk 0:00:51.2]}
30... Ka6 {[%clk 0:00:35.5]} 31. g4 {[%clk 0:00:50.7]} 31... Rd2 {[%clk
0:00:24.8]} 32. f5 {[%clk 0:00:21.4]} 32... b3 {[%clk 0:00:20.1]} 33. fxe6
{[%clk 0:00:20.5]} 33... b2 {[%clk 0:00:20.2]} 34. Rf1 {[%clk 0:00:20]} 34...
Rd8 {[%clk 0:00:10.5]} 35. Rb1 {[%clk 0:00:18.8]} 35... c5 {[%clk 0:00:02.6]}
36. Rxb2 {[%clk 0:00:19]} 36... c4 {[%clk 0:00:02.2]} 37. Kf5 {[%clk 0:00:18.3]}
37... b5 {[%clk 0:00:02]} 38. g5 {[%clk 0:00:14.4]} 38... c3 {[%clk 0:00:01.8]}
39. Ra2+ {[%clk 0:00:13.8]} 39... Kb6 {[%clk 0:00:01.7]} 40. gxh6 {[%clk
0:00:12.6]} 40... b4 {[%clk 0:00:02.1]} 41. h7 {[%clk 0:00:13.2]} 41... Rh8
{[%clk 0:00:01.9]} 42. e7 {[%clk 0:00:12.7]} 42... b3 {[%clk 0:00:02.3]} 43. Ra3
{[%clk 0:00:13.2]} 43... b2 {[%clk 0:00:02.7]} 44. Rb3+ {[%clk 0:00:13.1]} 44...
Ka5 {[%clk 0:00:03.1]} 45. Kg6 {[%clk 0:00:13.6]} 45... Ka4 {[%clk 0:00:03]} 46.
Kg7 {[%clk 0:00:13.5]} 46... Kxb3 {[%clk 0:00:02.8]} 47. Kxh8 {[%clk 0:00:13.7]}
47... b1=Q {[%clk 0:00:03.7]} 48. e8=Q {[%clk 0:00:14.4]} 48... Qf5 {[%clk
0:00:03.8]} 49. Qg8+ {[%clk 0:00:13.4]} 49... Kb2 {[%clk 0:00:03.5]} 50. Qb8+
{[%clk 0:00:13.2]} 50... Kc1 {[%clk 0:00:03.4]} 51. Kg7 {[%clk 0:00:13.8]} 51...
c2 {[%clk 0:00:03.3]} 52. h8=Q {[%clk 0:00:13.6]} 52... Qg5+ {[%clk 0:00:03.5]}
53. Kf7 {[%clk 0:00:14.1]} 53... Qf5+ {[%clk 0:00:03.4]} 54. Qf6 {[%clk
0:00:14.7]} 54... Qxh5+ {[%clk 0:00:03.7]} 55. Qg6 {[%clk 0:00:14.9]} 55... Qf3+
{[%clk 0:00:02.4]} 56. Ke7 {[%clk 0:00:15.2]} 56... Qe3 {[%clk 0:00:01.6]} 57.
Qbd6 {[%clk 0:00:14.3]} 57... Kb1 {[%clk 0:00:01.4]} 58. Qb4+ {[%clk 0:00:14.5]}
58... Kc1 {[%clk 0:00:01.6]} 59. Qc4 {[%clk 0:00:14.5]} 59... Kb1 {[%clk
0:00:01.5]} 60. Qgxc2+ {[%clk 0:00:13.6]} 60... Ka1 {[%clk 0:00:01.6]} 61. Q4a2#
{[%clk 0:00:14.5]} 1-0

[Event "*** Titled Tuesday Blitz"]
[Site "Chess.com"]
[Date "2020.10.20"]
[Round "2"]
[White "tan275"]
[Black "andresgv36"]
[Result "0-1"]
[WhiteElo "2177"]
[BlackElo "2420"]
[TimeControl "180+1"]
[EndTime "10:19:03 PDT"]
[Termination "andresgv36 won by resignation"]

1. d4 {[%clk 0:03:00.9]} 1... Nf6 {[%clk 0:02:57.7]} 2. c4 {[%clk 0:03:00.6]}
2... e5 {[%clk 0:02:57.2]} 3. dxe5 {[%clk 0:02:59.1]} 3... Ng4 {[%clk
0:02:56.7]} 4. Nf3 {[%clk 0:02:58.5]} 4... Bc5 {[%clk 0:02:56.1]} 5. e3 {[%clk
0:02:58.6]} 5... Nc6 {[%clk 0:02:55.2]} 6. Be2 {[%clk 0:02:56]} 6... O-O {[%clk
0:02:54.1]} 7. Nc3 {[%clk 0:02:55.5]} 7... Re8 {[%clk 0:02:53.6]} 8. O-O {[%clk
0:02:54.4]} 8... Ngxe5 {[%clk 0:02:52.4]} 9. b3 {[%clk 0:02:40.1]} 9... Nxf3+
{[%clk 0:02:48.3]} 10. Bxf3 {[%clk 0:02:39.4]} 10... Ne5 {[%clk 0:02:48.5]} 11.
Be2 {[%clk 0:02:38.9]} 11... a5 {[%clk 0:02:47.5]} 12. Bb2 {[%clk 0:02:33.3]}
12... Ra6 {[%clk 0:02:46.5]} 13. Nd5 {[%clk 0:02:23.1]} 13... Rh6 {[%clk
0:02:39.7]} 14. Bd4 {[%clk 0:02:12.1]} 14... Qh4 {[%clk 0:02:08.5]} 15. h3
{[%clk 0:02:08.4]} 15... d6 {[%clk 0:02:07]} 16. Nf4 {[%clk 0:01:54.1]} 16...
Ng6 {[%clk 0:01:25.7]} 17. Nxg6 {[%clk 0:01:23.8]} 17... Rxg6 {[%clk 0:01:19.5]}
18. Bg4 {[%clk 0:01:03.2]} 18... Bxg4 {[%clk 0:01:10.5]} 19. hxg4 {[%clk
0:01:02.4]} 19... Bxd4 {[%clk 0:00:30]} 20. Qxd4 {[%clk 0:00:47.7]} 20... Rxg4
{[%clk 0:00:29.2]} 21. Qd5 {[%clk 0:00:46.3]} 21... Re5 {[%clk 0:00:20.2]} 22.
Qxb7 {[%clk 0:00:44.7]} 22... h6 {[%clk 0:00:19.2]} 23. g3 {[%clk 0:00:35.9]}
23... Qh5 {[%clk 0:00:17]} 24. Qg2 {[%clk 0:00:31.6]} 24... Qg6 {[%clk
0:00:15.7]} 25. Rad1 {[%clk 0:00:19.8]} 25... Rxe3 {[%clk 0:00:12.9]} 26. Kh2
{[%clk 0:00:14.4]} 26... Re5 {[%clk 0:00:11.4]} 27. Rd5 {[%clk 0:00:13.2]} 27...
h5 {[%clk 0:00:10.5]} 28. Rxe5 {[%clk 0:00:12.9]} 28... dxe5 {[%clk 0:00:11.4]}
29. Rd1 {[%clk 0:00:13]} 29... h4 {[%clk 0:00:10.9]} 30. Rd3 {[%clk 0:00:11.8]}
30... hxg3+ {[%clk 0:00:10.8]} 31. Rxg3 {[%clk 0:00:11.6]} 31... Rxg3 {[%clk
0:00:10.8]} 32. Qxg3 {[%clk 0:00:11.6]} 32... Qxg3+ {[%clk 0:00:10.6]} 33. Kxg3
{[%clk 0:00:12]} 33... f6 {[%clk 0:00:09.8]} 34. a3 {[%clk 0:00:12.2]} 34... Kf8
{[%clk 0:00:09.8]} 35. Kf3 {[%clk 0:00:12.2]} 35... Ke7 {[%clk 0:00:09.7]} 36.
Ke4 {[%clk 0:00:12.5]} 36... Ke6 {[%clk 0:00:09.6]} 37. b4 {[%clk 0:00:12.5]}
37... f5+ {[%clk 0:00:09.8]} 38. Kd3 {[%clk 0:00:11.3]} 38... axb4 {[%clk
0:00:10.2]} 39. axb4 {[%clk 0:00:11.4]} 39... Kd6 {[%clk 0:00:10.7]} 40. f3
{[%clk 0:00:10.6]} 40... g5 {[%clk 0:00:10.2]} 41. Ke3 {[%clk 0:00:10.3]} 41...
Kc6 {[%clk 0:00:10.1]} 42. Kd3 {[%clk 0:00:08.9]} 42... Kb6 {[%clk 0:00:10.3]}
43. Ke3 {[%clk 0:00:08.6]} 43... c6 {[%clk 0:00:10.3]} 44. Kd3 {[%clk 0:00:08]}
44... Kc7 {[%clk 0:00:10.8]} 45. Ke3 {[%clk 0:00:07.4]} 45... Kd6 {[%clk
0:00:11.3]} 46. Kd3 {[%clk 0:00:07.6]} 46... e4+ {[%clk 0:00:11.5]} 47. fxe4
{[%clk 0:00:06.5]} 47... f4 {[%clk 0:00:12.1]} 48. b5 {[%clk 0:00:04.7]} 48...
cxb5 {[%clk 0:00:12.1]} 49. cxb5 {[%clk 0:00:05.2]} 49... Kc5 {[%clk 0:00:12.6]}
50. e5 {[%clk 0:00:04.3]} 50... Kxb5 {[%clk 0:00:12.9]} 51. Ke4 {[%clk
0:00:04.5]} 51... Kc6 {[%clk 0:00:13.1]} 52. Kf3 {[%clk 0:00:04.2]} 52... Kd5
{[%clk 0:00:11.8]} 53. Kg4 {[%clk 0:00:05.1]} 53... Kxe5 {[%clk 0:00:11.7]} 54.
Kxg5 {[%clk 0:00:04.3]} 54... f3 {[%clk 0:00:11.7]} 0-1

[Event "*** Titled Tuesday Blitz"]
[Site "Chess.com"]
[Date "2020.10.20"]
[Round "2"]
[White "SanchezKelvin"]
[Black "Bwert2602"]
[Result "1-0"]
[WhiteElo "2388"]
[BlackElo "2026"]
[TimeControl "180+1"]
[EndTime "10:19:03 PDT"]
[Termination "SanchezKelvin won on time"]

1. e4 {[%clk 0:03:00.9]} 1... c5 {[%clk 0:02:53.9]} 2. Nf3 {[%clk 0:02:57]} 2...
Nc6 {[%clk 0:02:52.7]} 3. d4 {[%clk 0:02:56.6]} 3... cxd4 {[%clk 0:02:52.3]} 4.
Nxd4 {[%clk 0:02:57.5]} 4... e5 {[%clk 0:02:52.6]} 5. Nb5 {[%clk 0:02:57.4]}
5... a6 {[%clk 0:02:52.4]} 6. Nd6+ {[%clk 0:02:57.4]} 6... Bxd6 {[%clk 0:02:53]}
7. Qxd6 {[%clk 0:02:57.8]} 7... Qf6 {[%clk 0:02:53.6]} 8. Qd2 {[%clk 0:02:57.5]}
8... Qg6 {[%clk 0:02:53.2]} 9. f3 {[%clk 0:02:57.5]} 9... d5 {[%clk 0:02:51.5]}
10. exd5 {[%clk 0:02:53.7]} 10... Nd4 {[%clk 0:02:50.4]} 11. Bd3 {[%clk
0:02:53.1]} 11... Bf5 {[%clk 0:02:49.6]} 12. O-O {[%clk 0:02:38.3]} 12... Bxd3
{[%clk 0:02:45.4]} 13. cxd3 {[%clk 0:02:37.3]} 13... Nf6 {[%clk 0:02:44.1]} 14.
f4 {[%clk 0:02:29.2]} 14... O-O {[%clk 0:02:07.3]} 15. fxe5 {[%clk 0:02:17.4]}
15... Nxd5 {[%clk 0:01:57.5]} 16. Nc3 {[%clk 0:02:15.3]} 16... Nb4 {[%clk
0:01:48.8]} 17. Ne4 {[%clk 0:02:12.2]} 17... Nbc2 {[%clk 0:01:43.9]} 18. Rb1
{[%clk 0:02:11]} 18... Rae8 {[%clk 0:01:42.3]} 19. Qf2 {[%clk 0:01:55.8]} 19...
Rxe5 {[%clk 0:01:32.8]} 20. Bf4 {[%clk 0:01:53.5]} 20... Rf5 {[%clk 0:01:09.6]}
21. Ng3 {[%clk 0:01:51.9]} 21... Rf6 {[%clk 0:00:58.4]} 22. Rbc1 {[%clk
0:01:04.1]} 22... Qxd3 {[%clk 0:00:53]} 23. Rfd1 {[%clk 0:01:02.7]} 23... Qg6
{[%clk 0:00:43.8]} 24. Rxd4 {[%clk 0:00:58.7]} 24... Nxd4 {[%clk 0:00:41]} 25.
Qxd4 {[%clk 0:00:58.7]} 25... Re8 {[%clk 0:00:39.5]} 26. Rf1 {[%clk 0:00:57.2]}
26... h6 {[%clk 0:00:32.4]} 27. Qd7 {[%clk 0:00:44.9]} 27... Rfe6 {[%clk
0:00:27.7]} 28. Qxb7 {[%clk 0:00:41.3]} 28... Re1 {[%clk 0:00:26.6]} 29. Qf3
{[%clk 0:00:39.3]} 29... Qb1 {[%clk 0:00:24.9]} 30. Qf2 {[%clk 0:00:15.2]} 30...
Kh7 {[%clk 0:00:23]} 31. h3 {[%clk 0:00:13.9]} 31... f5 {[%clk 0:00:20.8]} 32.
Bd2 {[%clk 0:00:12.7]} 32... Rd1 {[%clk 0:00:17.9]} 33. Bc3 {[%clk 0:00:08.4]}
33... g5 {[%clk 0:00:16.8]} 34. Qxf5+ {[%clk 0:00:07.9]} 34... Qxf5 {[%clk
0:00:15.5]} 35. Nxf5 {[%clk 0:00:08.8]} 35... Rxf1+ {[%clk 0:00:14.8]} 36. Kxf1
{[%clk 0:00:09.1]} 36... Rf8 {[%clk 0:00:13.4]} 37. g4 {[%clk 0:00:08.6]} 37...
Kg6 {[%clk 0:00:14.3]} 38. Kg2 {[%clk 0:00:08.6]} 38... Re8 {[%clk 0:00:14.7]}
39. Kf3 {[%clk 0:00:07.9]} 39... Rf8 {[%clk 0:00:14.9]} 40. Ke4 {[%clk
0:00:07.8]} 40... Re8+ {[%clk 0:00:14.8]} 41. Kd3 {[%clk 0:00:08.1]} 41... Rd8+
{[%clk 0:00:14.8]} 42. Bd4 {[%clk 0:00:07.9]} 42... h5 {[%clk 0:00:14.3]} 43. b4
{[%clk 0:00:06.2]} 43... hxg4 {[%clk 0:00:13.7]} 44. hxg4 {[%clk 0:00:07.1]}
44... Rc8 {[%clk 0:00:13.5]} 45. Bc5 {[%clk 0:00:06.7]} 45... Rd8+ {[%clk
0:00:13.2]} 46. Kc4 {[%clk 0:00:07]} 46... Rh8 {[%clk 0:00:12.7]} 47. Ne3 {[%clk
0:00:06.8]} 47... Rh3 {[%clk 0:00:12.3]} 48. a4 {[%clk 0:00:06.8]} 48... Kf7
{[%clk 0:00:12]} 49. b5 {[%clk 0:00:07.1]} 49... axb5+ {[%clk 0:00:11.9]} 50.
axb5 {[%clk 0:00:08]} 50... Ke6 {[%clk 0:00:12.1]} 51. b6 {[%clk 0:00:08.1]}
51... Kd7 {[%clk 0:00:12.3]} 52. Kd5 {[%clk 0:00:08.4]} 52... Rh1 {[%clk
0:00:08.7]} 53. Ke5 {[%clk 0:00:08.7]} 53... Rc1 {[%clk 0:00:07.2]} 54. Bd4
{[%clk 0:00:09]} 54... Rg1 {[%clk 0:00:03.4]} 55. Kf5 {[%clk 0:00:08.9]} 1-0